bitfinex/quotes_SOLUSD_20230110
["timestamp","ask_amount","ask_price","bid_price","bid_amount"]
[1673379271657,1.92,16.376,16.371,8.82798785]
[1673379271857,1.92,16.375,16.371,8.82798785]
[1673379272067,1.92,16.378,16.371,8.82798785]
[1673379273438,1.92,16.378,16.37,126.52]
[1673379273755,1.92,16.378,16.37,25.2]
[1673379273756,20.0,16.376,16.37,25.2]
[1673379273970,18.92,16.375,16.37,25.2]
[1673379274184,20.0,16.374,16.37,25.2]
[1673379274496,18.92,16.373,16.364,72.43774013]
[1673379275335,20.0,16.374,16.368,8.82798785]
[1673379276690,18.92,16.373,16.364,72.43774013]
[1673379276994,18.92,16.373,16.366,8.82798785]
[1673379280792,20.0,16.372,16.363,128.838]
[1673379281005,18.92,16.371,16.363,117.31598785]
[1673379282384,1.92,16.371,16.363,117.31598785]
[1673379282599,1.92,16.371,16.363,180.02852223]
[1673379282807,20.0,16.372,16.363,180.02852223]
[1673379283972,20.0,16.372,16.364,17.0]
[1673379284376,20.0,16.372,16.365,69.37052223]
[1673379284904,20.0,16.372,16.366,53.30052223]
[1673379285126,1.92,16.371,16.366,53.30052223]
[1673379285317,1.92,16.371,16.367,18.2]
[1673379285737,1.92,16.371,16.368,8.82798785]
[1673379285954,1.92,16.371,16.369,20.0]
[1673379286168,1.92,16.371,16.369,39.37]
[1673379286371,1.92,16.371,16.37,8.82798785]
[1673379286692,1.92,16.371,16.37,28.82798785]
[1673379288670,20.0,16.374,16.37,28.82798785]
[1673379289853,20.0,16.376,16.371,20.0]
[1673379290065,0.96,16.375,16.371,20.0]
[1673379290486,0.96,16.375,16.371,28.82798785]
[1673379290821,0.96,16.374,16.371,28.82798785]
[1673379291218,0.96,16.374,16.371,20.0]
[1673379291430,0.96,16.374,16.372,8.82798785]
[1673379292500,20.0,16.376,16.372,8.82798785]
[1673379293334,20.0,16.376,16.371,25.93]
[1673379293557,20.0,16.376,16.372,8.82798785]
[1673379293959,1.92,16.375,16.372,8.82798785]
[1673379301752,20.0,16.378,16.372,8.82798785]
[1673379301962,1.92,16.376,16.373,30.56]
[1673379302153,1.92,16.376,16.372,8.82798785]
[1673379302361,1.92,16.376,16.374,8.57989556]
[1673379303308,20.0,16.378,16.374,8.57989556]
[1673379305418,20.0,16.378,16.371,31.25]
[1673379305623,20.0,16.378,16.372,8.57989556]
[1673379311755,20.0,16.378,16.372,53.05242994]
[1673379312351,20.0,16.378,16.373,17.0]
[1673379312676,20.0,16.378,16.374,8.57989556]
[1673379313113,20.0,16.378,16.372,44.47253438]
[1673379313302,1.92,16.377,16.372,44.47253438]
[1673379315743,20.0,16.378,16.373,8.57989556]
[1673379316242,20.0,16.378,16.373,53.05242994]
[1673379317428,20.0,16.378,16.374,8.57989556]
[1673379321633,1.92,16.377,16.374,8.57989556]
[1673379323414,1.92,16.377,16.373,44.47253438]
[1673379323729,1.92,16.377,16.373,53.05242994]
[1673379328040,1.92,16.377,16.37,127.07]
[1673379328257,1.92,16.377,16.371,20.0]
[1673379328974,1.92,16.377,16.371,64.47253438]
[1673379329620,20.0,16.378,16.371,64.47253438]
[1673379329831,20.0,16.378,16.372,8.57989556]
[1673379330865,0.96,16.377,16.372,8.57989556]
[1673379331286,6.0683455,16.383,16.373,80.4]
[1673379331509,6.0683455,16.383,16.374,20.0]
[1673379331819,6.0683455,16.383,16.375,81.47253438]
[1673379332035,6.0683455,16.383,16.375,212.63365828]
[1673379332228,6.0683455,16.383,16.376,53.05242994]
[1673379332439,6.0683455,16.383,16.377,37.0]
[1673379332649,6.0683455,16.383,16.377,134.56242994]
[1673379332868,6.0683455,16.383,16.378,53.05242994]
[1673379333191,6.0683455,16.383,16.379,73.05242994]
[1673379333614,6.0683455,16.383,16.38,98.85242994]
[1673379333832,6.0683455,16.383,16.381,20.0]
[1673379334140,6.0683455,16.383,16.381,73.05242994]
[1673379334358,6.0683455,16.383,16.382,54.37989556]
[1673379334666,6.0683455,16.383,16.382,74.37989556]
[1673379335386,6.0683455,16.383,16.382,28.57989556]
[1673379338237,6.0683455,16.383,16.382,73.05242994]
[1673379338445,6.0683455,16.383,16.382,135.85242994]
[1673379339490,6.0683455,16.383,16.382,90.05242994]
[1673379341707,6.0683455,16.383,16.382,73.05242994]
[1673379342118,6.0683455,16.383,16.382,20.0]
[1673379342645,6.0683455,16.383,16.379,20.0]
[1673379343381,6.0683455,16.383,16.379,64.47253438]
[1673379344857,6.0683455,16.383,16.379,20.0]
[1673379345181,6.0683455,16.383,16.378,20.0]
[1673379345483,6.0683455,16.383,16.379,17.0]
[1673379345705,6.0683455,16.383,16.38,20.0]
[1673379346834,6.0683455,16.383,16.379,20.0]
[1673379348332,1.92,16.382,16.379,20.0]
[1673379348546,1.92,16.382,16.363,45.85]
[1673379348547,18.92,16.382,16.363,45.85]
[1673379348749,20.0,16.38,16.363,163.2553]
[1673379349075,20.0,16.378,16.366,49.44763569]
[1673379349382,1.92,16.377,16.366,49.44763569]
[1673379349592,1.92,16.377,16.367,45.84]
[1673379349789,18.92,16.377,16.371,20.0]
[1673379350118,20.0,16.375,16.371,20.0]
[1673379350304,1.92,16.374,16.366,49.44763569]
[1673379350516,45.81,16.376,16.366,40.86774013]
[1673379350728,45.8,16.379,16.37,127.07]
[1673379351045,65.8,16.382,16.371,17.0]
[1673379351285,65.8,16.382,16.37,202.21122834]
[1673379351480,65.8,16.382,16.37,161.34348821]
[1673379351676,45.8,16.379,16.371,20.0]
[1673379351892,20.0,16.378,16.371,20.0]
[1673379352437,47.73,16.377,16.371,20.0]
[1673379352745,1.92,16.377,16.371,20.0]
[1673379352953,18.92,16.377,16.371,20.0]
[1673379353274,20.0,16.376,16.371,20.0]
[1673379353459,1.92,16.375,16.371,20.0]
[1673379353670,47.74,16.375,16.371,20.0]
[1673379353985,20.0,16.374,16.371,20.0]
[1673379354194,1.92,16.373,16.371,20.0]
[1673379354738,1.92,16.373,16.367,20.0]
[1673379354947,18.92,16.373,16.364,45.85]
[1673379355137,18.92,16.373,16.36,127.14]
[1673379355138,20.0,16.371,16.361,45.86]
[1673379355347,18.92,16.37,16.36,135.71989556]
[1673379355579,20.0,16.369,16.36,135.71989556]
[1673379355777,1.92,16.368,16.36,135.71989556]
[1673379356507,1.92,16.368,16.361,45.86]
[1673379359470,1.92,16.368,16.36,135.71989556]
[1673379359471,18.92,16.368,16.36,135.71989556]
[1673379359684,18.92,16.368,16.361,20.0]
[1673379360828,64.76,16.368,16.36,25.61]
[1673379361040,20.0,16.367,16.356,39.54]
[1673379361259,20.0,16.367,16.354,38.59]
[1673379361469,20.0,16.365,16.352,17.15979112]
[1673379361682,17.96,16.364,16.351,57.24]
[1673379361909,20.96,16.363,16.351,57.24]
[1673379362214,0.96,16.362,16.352,8.57989556]
[1673379362525,0.96,16.361,16.352,8.57989556]
[1673379362732,0.96,16.361,16.353,35.6]
[1673379362733,0.96,16.36,16.353,35.6]
[1673379363063,0.96,16.359,16.353,35.6]
[1673379363243,0.96,16.358,16.353,35.6]
[1673379363451,0.96,16.357,16.353,35.6]
[1673379363993,0.96,16.356,16.353,35.6]
[1673379364218,0.96,16.355,16.353,35.6]
[1673379364522,0.96,16.355,16.351,33.12]
[1673379366725,45.16,16.38,16.351,33.12]
[1673379366924,20.0,16.372,16.352,37.0]
[1673379367134,20.0,16.372,16.36,127.34]
[1673379367333,20.0,16.372,16.361,20.0]
[1673379367562,20.0,16.367,16.361,20.0]
[1673379368296,1.92,16.366,16.361,20.0]
[1673379368509,18.92,16.366,16.361,20.0]
[1673379368911,20.0,16.365,16.361,20.0]
[1673379369236,18.92,16.364,16.361,20.0]
[1673379369774,18.92,16.364,16.354,20.0]
[1673379370182,18.92,16.364,16.355,39.62]
[1673379370393,18.92,16.364,16.356,20.0]
[1673379370813,18.92,16.364,16.357,40.29]
[1673379371014,18.92,16.364,16.358,20.0]
[1673379371658,20.0,16.365,16.358,8.57989556]
[1673379371872,20.0,16.367,16.359,40.56]
[1673379372083,20.0,16.372,16.36,146.52]
[1673379372294,20.0,16.372,16.36,155.09989556]
[1673379372501,20.0,16.372,16.361,50.54989556]
[1673379372699,45.83,16.37,16.361,50.54989556]
[1673379373135,17.96,16.368,16.361,8.57989556]
[1673379373343,0.96,16.367,16.361,8.57989556]
[1673379373547,0.96,16.366,16.361,48.74989556]
[1673379374694,0.96,16.366,16.361,8.57989556]
[1673379376907,0.96,16.366,16.361,48.97989556]
[1673379377548,0.96,16.366,16.362,8.57989556]
[1673379378072,0.96,16.366,16.361,40.4]
[1673379378288,0.96,16.365,16.361,40.4]
[1673379378486,0.96,16.365,16.362,8.57989556]
[1673379384791,0.96,16.365,16.361,40.4]
[1673379385744,0.96,16.364,16.361,40.4]
[1673379385937,0.96,16.363,16.361,40.4]
[1673379386275,0.96,16.364,16.362,8.57989556]
[1673379386605,20.0,16.37,16.362,8.57989556]
[1673379386815,1.92,16.369,16.362,8.57989556]
[1673379387244,1.92,16.369,16.363,45.85]
[1673379387444,1.92,16.369,16.362,8.57989556]
[1673379387642,1.92,16.369,16.363,8.57989556]
[1673379390186,18.92,16.369,16.361,45.86]
[1673379394507,18.92,16.369,16.361,54.43989556]
[1673379402047,1.92,16.369,16.361,54.43989556]
[1673379405323,1.92,16.369,16.362,20.0]
[1673379405856,1.92,16.369,16.363,52.58989556]
[1673379406058,1.92,16.369,16.363,8.57989556]
[1673379406241,1.92,16.369,16.364,8.57989556]
[1673379414031,1.92,16.369,16.361,43.06]
[1673379414223,1.92,16.369,16.36,147.07]
[1673379414439,1.92,16.369,16.361,38.82]
[1673379414659,21.92,16.369,16.361,38.82]
[1673379414869,17.0,16.368,16.361,38.82]
[1673379415086,1.92,16.367,16.361,38.82]
[1673379418015,1.92,16.367,16.361,8.57989556]
[1673379418443,1.92,16.367,16.362,36.03]
[1673379418872,1.92,16.367,16.362,8.57989556]
[1673379426007,1.92,16.367,16.361,36.31]
[1673379426235,1.92,16.367,16.36,155.64989556]
[1673379426862,1.92,16.367,16.361,34.85]
[1673379427175,1.92,16.367,16.361,43.42989556]
[1673379429381,1.92,16.367,16.36,147.07]
[1673379429597,1.92,16.367,16.361,34.11]
[1673379431074,1.92,16.367,16.361,42.68989556]
[1673379432115,20.0,16.369,16.361,42.68989556]
[1673379433376,18.92,16.368,16.361,42.68989556]
[1673379441889,1.92,16.368,16.361,42.68989556]
[1673379448515,1.92,16.368,16.361,87.1514875]
[1673379449439,1.92,16.368,16.362,20.0]
[1673379449778,1.92,16.368,16.363,8.57989556]
[1673379449985,1.92,16.368,16.363,43.20989556]
[1673379450385,1.92,16.368,16.364,8.57989556]
[1673379450595,20.0,16.382,16.365,20.0]
[1673379450804,20.0,16.382,16.37,126.97]
[1673379451033,20.0,16.379,16.371,20.0]
[1673379451247,20.0,16.379,16.371,65.63989556]
[1673379451561,20.0,16.379,16.372,8.57989556]
[1673379451966,20.0,16.379,16.373,38.96]
[1673379452283,20.0,16.379,16.373,47.53989556]
[1673379452483,20.0,16.379,16.373,8.57989556]
[1673379453038,20.0,16.379,16.374,40.57]
[1673379453459,20.0,16.379,16.374,49.14989556]
[1673379453643,20.0,16.379,16.374,8.57989556]
[1673379454386,1.92,16.377,16.374,8.57989556]
[1673379454720,18.92,16.377,16.372,42.65]
[1673379455778,1.92,16.377,16.372,8.57989556]
[1673379455980,1.92,16.377,16.373,45.82]
[1673379456382,1.92,16.377,16.373,54.39989556]
[1673379456598,1.92,16.377,16.373,8.57989556]
[1673379459333,1.92,16.377,16.374,45.82]
[1673379460504,1.92,16.377,16.375,8.57989556]
[1673379461337,1.92,16.377,16.372,45.82]
[1673379461680,1.92,16.377,16.373,8.57989556]
[1673379463133,1.92,16.377,16.374,45.82]
[1673379463444,1.92,16.377,16.373,8.57989556]
[1673379464491,0.96,16.377,16.373,8.57989556]
[1673379464713,20.0,16.379,16.374,45.82]
[1673379465103,20.0,16.379,16.375,8.09709932]
[1673379465326,1.92,16.377,16.375,8.09709932]
[1673379465859,1.92,16.377,16.373,6.29099781]
[1673379466051,1.92,16.377,16.372,45.82]
[1673379466271,1.92,16.377,16.373,8.09709932]
[1673379470574,1.92,16.377,16.371,111.65087194]
[1673379470780,1.92,16.377,16.372,7.74310083]
[1673379473939,1.92,16.377,16.372,53.56397277]
[1673379474265,1.92,16.377,16.372,45.82087194]
[1673379474684,1.92,16.377,16.373,7.74310083]
[1673379475105,18.92,16.377,16.373,45.82]
[1673379475422,18.92,16.377,16.372,91.64087194]
[1673379475636,18.92,16.377,16.372,45.82087194]
[1673379476035,18.92,16.377,16.372,53.56397277]
[1673379477205,20.0,16.379,16.372,53.56397277]
[1673379477418,20.0,16.379,16.373,45.82]
[1673379477813,20.0,16.379,16.374,7.74310083]
[1673379478766,1.92,16.377,16.374,7.74310083]
[1673379479186,1.92,16.377,16.375,45.82]
[1673379479600,1.92,16.377,16.375,53.56310083]
[1673379479812,1.92,16.377,16.375,7.74310083]
[1673379481221,1.92,16.377,16.375,53.56310083]
[1673379481425,1.92,16.377,16.375,7.74310083]
[1673379481957,0.96,16.377,16.375,7.74310083]
[1673379482170,20.0,16.379,16.375,7.74310083]
[1673379482901,1.92,16.377,16.375,7.74310083]
[1673379484587,1.92,16.377,16.374,45.82087194]
[1673379484772,1.92,16.377,16.374,53.56397277]
[1673379485000,1.92,16.377,16.372,40.63651831]
[1673379485314,1.92,16.377,16.371,20.0]
[1673379485530,20.0,16.376,16.371,20.0]
[1673379485857,18.92,16.375,16.371,20.0]
[1673379487848,45.82,16.374,16.36,126.94]
[1673379488040,45.82,16.374,16.36,25.27]
[1673379488245,25.9804,16.373,16.36,25.27]
[1673379488661,65.82,16.372,16.36,25.27]
[1673379488883,38.92,16.371,16.36,25.37]
[1673379489204,38.92,16.371,16.361,7.74310083]
[1673379489405,45.83,16.37,16.361,7.74310083]
[1673379489622,18.92,16.369,16.36,25.2]
[1673379489949,20.0,16.368,16.36,25.2]
[1673379490141,20.0,16.368,16.355,45.87]
[1673379490142,18.92,16.367,16.355,45.87]
[1673379490361,20.0,16.366,16.351,45.88]
[1673379490675,20.0,16.364,16.352,7.74310083]
[1673379490874,17.96,16.363,16.352,7.74310083]
[1673379491205,0.96,16.362,16.353,45.88]
[1673379491423,0.96,16.361,16.353,45.88]
[1673379491608,0.96,16.36,16.353,45.88]
[1673379491821,0.96,16.359,16.353,45.88]
[1673379492034,0.96,16.358,16.353,45.88]
[1673379492365,0.96,16.357,16.353,45.88]
[1673379492768,20.0,16.362,16.354,7.74310083]
[1673379493195,511.2985,16.37,16.355,45.87]
[1673379493619,511.2985,16.37,16.356,7.74310083]
[1673379493827,557.1285,16.37,16.356,7.74310083]
[1673379494041,0.96,16.363,16.357,65.87]
[1673379494360,0.96,16.362,16.358,7.74310083]
[1673379494552,0.96,16.361,16.358,7.74310083]
[1673379494764,0.96,16.361,16.359,65.86]
[1673379495185,0.96,16.361,16.359,73.60310083]
[1673379495732,0.96,16.361,16.359,27.74310083]
[1673379496886,440.13,16.37,16.359,27.74310083]
[1673379497084,394.3,16.37,16.36,172.93]
[1673379497295,45.82,16.375,16.361,20.0]
[1673379497516,45.82,16.375,16.361,27.74310083]
[1673379497708,20.0,16.374,16.361,20.0]
[1673379497920,20.0,16.374,16.362,7.74310083]
[1673379498131,1.92,16.365,16.362,7.74310083]
[1673379498672,20.0,16.372,16.362,7.74310083]
[1673379499098,20.0,16.372,16.363,45.85]
[1673379499623,20.0,16.372,16.364,7.74310083]
[1673379500143,1.92,16.367,16.364,7.74310083]
[1673379502434,20.0,16.372,16.365,45.84]
[1673379502645,20.0,16.372,16.366,20.0]
[1673379502857,20.0,16.375,16.366,27.74310083]
[1673379503073,20.0,16.377,16.37,126.52]
[1673379503286,20.0,16.378,16.371,20.0]
[1673379503502,20.0,16.378,16.371,27.74310083]
[1673379503930,20.0,16.378,16.371,20.0]
[1673379504136,1.92,16.377,16.371,20.0]
[1673379504458,18.92,16.377,16.371,20.0]
[1673379507292,45.81,16.376,16.371,20.0]
[1673379507509,18.92,16.375,16.371,20.0]
[1673379509073,1.92,16.375,16.371,20.0]
[1673379510239,45.8,16.381,16.372,7.74310083]
[1673379510552,45.8,16.381,16.371,65.83]
[1673379510553,20.0,16.386,16.371,65.83]
[1673379510768,20.0,16.386,16.372,7.74310083]
[1673379511083,20.0,16.386,16.373,20.0]
[1673379511273,20.0,16.386,16.373,65.82]
[1673379511483,20.0,16.386,16.374,7.74310083]
[1673379511899,45.79,16.385,16.375,45.82]
[1673379512343,20.0,16.384,16.372,45.82]
[1673379512659,20.0,16.384,16.376,7.74310083]
[1673379513598,20.0,16.386,16.377,65.81]
[1673379513814,25.34,16.41,16.378,17.0]
[1673379513815,20.0,16.397,16.378,17.0]
[1673379514009,20.0,16.397,16.38,126.52]
[1673379514225,20.0,16.397,16.381,20.0]
[1673379514541,20.0,16.394,16.381,65.8]
[1673379515178,0.96,16.389,16.382,7.72985085]
[1673379515706,0.96,16.389,16.383,45.79]
[1673379516321,0.96,16.388,16.383,45.79]
[1673379516540,0.96,16.387,16.381,20.0]
[1673379516744,0.96,16.386,16.381,20.0]
[1673379516968,0.96,16.385,16.381,20.0]
[1673379517278,0.96,16.384,16.381,20.0]
[1673379517495,0.96,16.383,16.381,20.0]
[1673379517674,0.96,16.382,16.378,20.0]
[1673379517890,0.96,16.381,16.378,20.0]
[1673379518099,0.96,16.38,16.378,20.0]
[1673379518323,0.96,16.379,16.378,20.0]
[1673379518534,1.92,16.379,16.377,20.0]
[1673379518745,0.96,16.379,16.377,7.72985085]
[1673379518955,0.96,16.379,16.378,20.0]
[1673379520645,0.96,16.379,16.378,27.72985085]
[1673379522135,0.96,16.379,16.378,73.53985085]
[1673379522345,0.96,16.379,16.378,27.72985085]
[1673379522539,20.0,16.385,16.378,27.72985085]
[1673379522754,20.0,16.385,16.38,126.97]
[1673379522958,20.0,16.385,16.381,20.0]
[1673379523497,20.0,16.386,16.381,20.0]
[1673379523919,18.92,16.385,16.381,20.0]
[1673379525816,18.92,16.385,16.381,27.71676081]
[1673379528860,18.92,16.385,16.381,73.51676081]
[1673379529913,1.92,16.385,16.381,73.51676081]
[1673379530420,20.0,16.386,16.381,27.71676081]
[1673379530632,20.0,16.386,16.382,7.71676081]
[1673379531797,1.92,16.385,16.382,7.71676081]
[1673379532633,1.92,16.385,16.381,20.0]
[1673379532857,1.92,16.385,16.381,27.71676081]
[1673379533046,1.92,16.385,16.38,126.97]
[1673379533047,1.92,16.385,16.38,25.27]
[1673379533259,45.79,16.384,16.38,25.27]
[1673379533486,38.92,16.383,16.371,163.02544732]
[1673379533799,38.92,16.383,16.371,161.8412]
[1673379534115,65.8,16.382,16.371,161.8412]
[1673379534322,18.92,16.381,16.371,161.8412]
[1673379535166,18.92,16.381,16.371,116.0112]
[1673379535475,65.8,16.38,16.371,116.0112]
[1673379535669,18.92,16.379,16.371,161.8412]
[1673379541808,18.92,16.379,16.371,45.83]
[1673379543804,18.92,16.379,16.37,126.87]
[1673379544123,18.92,16.379,16.371,20.0]
[1673379546646,20.0,16.378,16.371,65.04]
[1673379546865,18.92,16.377,16.371,65.04]
[1673379551888,18.92,16.377,16.371,20.0]
[1673379552110,18.92,16.377,16.37,25.27]
[1673379552325,45.81,16.376,16.36,126.46]
[1673379552642,18.92,16.375,16.36,126.46]
[1673379552842,18.92,16.375,16.361,39.95]
[1673379553053,20.0,16.373,16.361,39.95]
[1673379553270,18.92,16.372,16.361,39.95]
[1673379553462,64.74,16.372,16.361,39.95]
[1673379553675,20.0,16.371,16.36,61.72]
[1673379553898,18.92,16.37,16.36,25.2]
[1673379554108,20.0,16.369,16.36,25.2]
[1673379554306,18.92,16.368,16.36,25.2]
[1673379554521,64.76,16.368,16.36,25.2]
[1673379555072,20.0,16.367,16.36,25.2]
[1673379555271,18.92,16.366,16.36,25.2]
[1673379555602,18.92,16.366,16.361,20.0]
[1673379557882,64.76,16.366,16.361,20.0]
[1673379558089,47.76,16.366,16.361,20.0]
[1673379559063,1.92,16.366,16.361,20.0]
[1673379559402,18.92,16.366,16.361,20.0]
[1673379561926,18.92,16.366,16.36,25.2]
[1673379562119,64.76,16.366,16.36,25.2]
[1673379562540,20.0,16.365,16.356,28.93]
[1673379562744,17.96,16.364,16.354,28.49]
[1673379562961,20.96,16.363,16.354,28.49]
[1673379563188,17.96,16.362,16.354,28.49]
[1673379563407,0.96,16.361,16.354,28.49]
[1673379563604,0.96,16.36,16.354,28.49]
[1673379563804,0.96,16.359,16.354,28.49]
[1673379564017,0.96,16.358,16.354,28.49]
[1673379564235,0.96,16.357,16.354,28.49]
[1673379564854,0.96,16.356,16.354,28.49]
[1673379565069,0.96,16.355,16.354,28.49]
[1673379565291,1.92,16.355,16.354,28.49]
[1673379567812,1.92,16.355,16.352,27.03]
[1673379568025,0.96,16.354,16.352,27.03]
[1673379568234,0.96,16.353,16.351,29.4]
[1673379568429,20.0,16.361,16.351,29.4]
[1673379568633,18.92,16.36,16.351,29.4]
[1673379568961,20.0,16.361,16.351,29.4]
[1673379570349,18.92,16.36,16.351,29.4]
[1673379573277,117.8747,16.372,16.352,44.71676081]
[1673379573589,117.8747,16.372,16.36,25.33]
[1673379573798,117.8747,16.372,16.353,79.76610198]
[1673379573799,20.0,16.367,16.353,79.76610198]
[1673379574203,45.84,16.366,16.353,45.07610198]
[1673379574408,37.0,16.365,16.353,45.07610198]
[1673379574631,1.92,16.364,16.353,45.07610198]
[1673379574837,20.0,16.363,16.353,45.07610198]
[1673379575066,18.92,16.362,16.353,45.07610198]
[1673379575261,64.77,16.362,16.353,45.07610198]
[1673379577357,18.92,16.362,16.353,45.07610198]
[1673379577576,18.92,16.362,16.354,29.31]
[1673379579897,20.0,16.361,16.353,45.07610198]
[1673379580112,18.92,16.36,16.352,21.9]
[1673379581248,64.78,16.36,16.352,21.9]
[1673379581460,18.92,16.36,16.351,132.7464]
[1673379582004,20.0,16.365,16.351,132.7464]
[1673379582005,20.0,16.365,16.352,7.71676081]
[1673379582406,20.0,16.365,16.353,64.08610198]
[1673379582842,20.0,16.365,16.354,52.79286279]
[1673379583459,117.8747,16.372,16.355,52.79286279]
[1673379583674,137.8747,16.372,16.36,127.45]
[1673379583882,131.9098,16.371,16.361,20.0]
[1673379584095,177.7398,16.371,16.361,44.39]
[1673379584823,18.92,16.368,16.361,44.39]
[1673379585462,18.92,16.368,16.356,52.79286279]
[1673379585463,18.92,16.368,16.356,45.07610198]
[1673379585653,20.0,16.366,16.35,126.86]
[1673379585862,20.0,16.366,16.351,115.1348]
[1673379585863,18.92,16.365,16.351,115.1348]
[1673379586077,20.0,16.364,16.351,136.6848]
[1673379586288,18.92,16.363,16.351,136.6848]
[1673379586506,20.0,16.362,16.351,136.6848]
[1673379586720,18.92,16.361,16.351,136.6848]
[1673379587548,45.86,16.36,16.351,115.1348]
[1673379587882,38.92,16.359,16.351,115.1348]
[1673379591124,18.92,16.359,16.351,115.1348]
[1673379591335,17.0,16.358,16.351,115.1348]
[1673379591545,1.92,16.357,16.351,115.1348]
[1673379591761,0.96,16.356,16.351,115.1348]
[1673379592297,1.92,16.359,16.351,115.1348]
[1673379592698,1.92,16.359,16.352,8.813]
[1673379594169,1.92,16.359,16.351,124.0368]
[1673379595435,21.92,16.359,16.351,124.0368]
[1673379595646,17.0,16.358,16.351,124.0368]
[1673379595856,1.92,16.357,16.351,124.0368]
[1673379596081,1.92,16.357,16.351,8.902]
[1673379596291,1.92,16.357,16.35,25.21]
[1673379596503,1.92,16.357,16.351,20.0]
[1673379605630,1.92,16.357,16.345,4.464]
[1673379605840,45.87,16.356,16.345,4.464]
[1673379606163,20.0,16.354,16.345,4.464]
[1673379606381,18.92,16.353,16.345,4.464]
[1673379606579,64.8,16.353,16.345,4.464]
[1673379606790,20.0,16.352,16.345,4.464]
[1673379607000,18.92,16.351,16.345,4.464]
[1673379607521,64.8,16.351,16.345,4.464]
[1673379608271,20.0,16.35,16.345,4.464]
[1673379608583,18.92,16.349,16.345,4.464]
[1673379609119,18.92,16.349,16.341,22.953]
[1673379613318,20.0,16.348,16.341,22.953]
[1673379613531,18.92,16.347,16.34,25.44]
[1673379613744,64.81,16.347,16.337,4.397]
[1673379614055,64.81,16.347,16.336,4.397]
[1673379614056,20.0,16.346,16.336,4.397]
[1673379614257,18.92,16.345,16.332,3.348]
[1673379614470,20.0,16.344,16.332,23.348]
[1673379614677,18.92,16.343,16.332,23.348]
[1673379614884,20.0,16.348,16.332,23.348]
[1673379614885,20.0,16.357,16.333,52.91421838]
[1673379615098,138.561,16.357,16.34,127.4]
[1673379615316,20.0,16.356,16.341,20.0]
[1673379615523,65.87,16.356,16.341,79.48821785]
[1673379616372,18.92,16.351,16.341,79.48821785]
[1673379620254,20.0,16.35,16.336,11.19]
[1673379620443,38.92,16.349,16.336,11.19]
[1673379620656,20.0,16.348,16.336,11.19]